[Event "AUT Bundesliga Women 2020-21"]
[Site "Graz"]
[Date "2021.01.24"]
[Round "3.8"]
[White "Krassnitzer, Maria"]
[Black "Tscharnuter, Alexandra"]
[Result "1/2-1/2"]
[ECO "E21"]
[WhiteElo "1659"]
[BlackElo "1775"]
[Annotator "NA RC"]
[PlyCount "103"]
[EventDate "2021.01.17"]
[EventType "team-tourn"]
[EventCountry "AUT"]
[SourceTitle "playchess.com"]
[Source "ChessBase"]
[SourceQuality "1"]
[TimeControl "40/5400+30:1800+30"]

1. d4 {[%emt 0:00:00]} Nf6 {[%emt 0:00:00]} 2. Nf3 {[%emt 0:00:14]} e6 {[%emt 0:00:29]} 3. c4 {[%emt 0:00:39]} b6 {[%emt 0:01:09]} 4. Nc3 {[%emt 0:00:55]} Bb4 {[%emt 0:00:33]} 5. a3 {[%emt 0:01:42]} Bxc3+ {[%emt 0:00:44]} 6. bxc3 {[%emt 0:00:05]} Bb7 {[%emt 0:03:10]} 7. Bg5 {[%emt 0:01:36]} h6 {[%emt 0:04:33]} 8. Bh4 {[%emt 0:01:07]} d6 {[%emt 0:01:12]} 9. e3 {[%emt 0:04:38]} Nbd7 {[%emt 0:01:06]} 10. Be2 {[%emt 0:01:51]} O-O {[%emt 0:03:25]} 11. O-O {[%emt 0:00:08]} Re8 {[%emt 0:04:21]} 12. Qc2 {[%emt 0:06:06]} e5 {[%emt 0:02:25]} 13. Nd2 {[%emt 0:00:56]} Qc8 {[%emt 0:25:32]} 14. a4 {[%emt 0:04:25]} a5 {[%emt 0:00:52]} 15. Rfe1 {[%emt 0:05:59]} Ba6 {[%emt 0:04:10]} 16. Bd3 {[%emt 0:19:16]} Qb7 {[%emt 0:06:45]} 17. Ne4 {[%emt 0:04:50]} Nxe4 {[%emt 0:02:10]} 18. Bxe4 {[%emt 0:00:06]} c6 {[%emt 0:00:18]} 19. d5 {[%emt 0:05:44]} Nc5 {[%emt 0:02:25]} 20. dxc6 {[%emt 0:01:17]} Qc7 {[%emt 0:00:43]} 21. Bd5 {[%emt 0:02:48]} Bc8 {[%emt 0:05:16]} 22. e4 {[%emt 0:02:10]} Be6 {[%emt 0:01:04]} 23. f3 {[%emt 0:02:16]} Kh8 {[%emt 0:01:54]} 24. Rab1 {[%emt 0:02:35]} Rab8 {[%emt 0:02:18]} 25. Bf2 {[%emt 0:02:33]} Rec8 {[%emt 0:03:51]} 26. Rb5 {[%emt 0:06:08]} Ra8 {[%emt 0:05:41]} 27. Reb1 {[%emt 0:01:27]} Rcb8 {[%emt 0:00:08]} 28. Bxc5 {[%emt 0:00:49]} bxc5 {[%emt 0:05:16]} 29. Rb7 {[%emt 0:02:24]} Rxb7 {[%emt 0:01:21]} 30. Rxb7 {[%emt 0:00:10]} Qc8 {[%emt 0:01:07]} 31. Qb3 {[%emt 0:00:54]} Kh7 {[%emt 0:01:27]} 32. Qb6 {[%emt 0:00:36]} Qe8 {[%emt 0:01:09]} 33. Qb5 {[%emt 0:01:33]} Qd8 {[%emt 0:01:03]} 34. c7 {[%emt 0:04:45]} Qg5 {[%emt 0:01:01]} 35. Qb2 {[%emt 0:06:18]} Rc8 {[%emt 0:02:01]} 36. Kf1 {[%emt 0:01:28]} Qe3 {[%emt 0:01:41]} 37. Qc2 {[%emt 0:02:37]} Qf4 {[%emt 0:01:31]} 38. h3 {[%emt 0:01:30]} Qg5 {[%emt 0:02:16]} 39. Qd3 {[%emt 0:02:49]} Qe7 {[%emt 0:00:46]} 40. Bxe6 {[%emt 0:00:00]} fxe6 {[%emt 0:00:00]} 41. Rb6 {[%emt 0:01:54]} Rxc7 {[%emt 0:07:39]} 42. Qxd6 {[%emt 0:01:37]} Qg5 {[%emt 0:01:38]} 43. Qd3 {[%emt 0:09:12]} Qe7 {[%emt 0:05:27]} 44. Rb5 {[%emt 0:04:47]} Rd7 {[%emt 0:04:34]} 45. Qe3 {[%emt 0:02:43]} Qd6 {[%emt 0:03:21]} 46. Rxc5 {[%emt 0:02:49]} Qd1+ {[%emt 0:01:30]} 47. Qe1 {[%emt 0:00:30]} Qxa4 {[%emt 0:00:37]} 48. Kf2 {[%emt 0:05:05]} Qc2+ {[%emt 0:01:47]} 49. Kg3 {[%emt 0:00:46]} Rd1 {[%emt 0:02:31]} 50. Qe3 {[%emt 0:01:01]} Rd3 {[%emt 0:00:56]} 51. Qe1 {[%emt 0:01:04]} Rd1 {[%emt 0:04:49]} 52. Qe3 {[%emt 0:00:27]} 1/2-1/2